Cogmind - Beta 15 @@@ ROGUE MODE // 2025.07.17 @ 12:36:57 Player: Carpathian Result: Self-destructed Performance ------------- Evolutions (2) 1000 Regions Visited (3) 600 Robots Destroyed (45) 225 Value Destroyed (1371) 1371 Prototype IDs (3) 60 Alien Tech Used (0) 0 Bonus (0) 0 TOTAL SCORE: 3256 Bonus ------- None Cogmind --------- Core Integrity 184/550 Matter 400/400 Energy 275/275 System Corruption 1% Temperature Cool (60) Movement Core (300) Ox5 Location -8/Materials Parts ------- > --- POWER (1) -------- Deuterium Engine > --- PROPULSION (2) --- (None) > --- UTILITY (6) ------ Small Storage Unit Medium Matter Pod Improved Targeting Computer > --- WEAPON (2) ------- (None) > --- INVENTORY (8) ---- Advanced Targeting Computer Datajack Peak State ------------ > --- POWER ------------ Light Nuclear Core > --- PROPULSION ------- Aluminum Leg Improved Aluminum Leg > --- UTILITY ---------- Small Storage Unit Medium Matter Pod Targeting Computer Hardened Light Armor Plating > --- WEAPON ----------- Heavy EM Shotgun Heavy EM Shotgun > --- INVENTORY -------- Light Ion Engine Aluminum Leg Improved Targeting Computer Heavy EM Pulse Gun Heavy Assault Rifle Assault Cannon Grenade Launcher Datajack [Rating: 20] Favorites ----------- Power Ion Engine Engine Ion Engine Power Core Light Nuclear Core Propulsion Light Treads Treads Light Treads Leg Aluminum Leg Utility Small Storage Unit Storage Small Storage Unit Processor Targeting Computer Hackware Hacking Suite Protection Hardened Light Armor Plating Weapon Medium Laser Energy Gun Medium Laser Ballistic Gun Assault Rifle Ballistic Cannon Assault Cannon Launcher Grenade Launcher Special Melee Weapon Datajack Build | -11 -10 -9 -8 ------- Run | Yrd Mat Mat Mat Slots Evolved 4 | . . 2 2 Power . | . . . . Propulsion . | . . . . Utility 4 | . . 2 2 Weapon . | . . . . Parts Attached 34 | 6 1 9 18 Power 6 | 1 . 1 4 Engine 5 | 1 . 1 3 Core 1 | . . . 1 Reactor . | . . . . Propulsion 8 | 2 . 2 4 Treads 2 | 2 . . . Leg 6 | . . 2 4 Wheel . | . . . . Hover . | . . . . Flight . | . . . . Utility 7 | 1 1 1 4 Device . | . . . . Storage 2 | 1 . . 1 Processor 2 | . 1 . 1 Hackware 1 | . . . 1 Protection 2 | . . 1 1 Artifact . | . . . . Weapon 13 | 2 . 5 6 Energy Gun 6 | 1 . 1 4 Energy Cannon . | . . . . Ballistic Gun 3 | 1 . 1 1 Ballistic Cannon 2 | . . 1 1 Launcher 1 | . . 1 . Special Weapon . | . . . . Impact Weapon . | . . . . Slashing Weapon . | . . . . Piercing Weapon . | . . . . Special Melee Weapon 1 | . . 1 . Unidentified Prototypes 1 | . . . 1 Corrupted Parts 1 | . . . 1 System Corruption 1 | . . . 1 Parts Lost 16 | . . 4 12 Power 3 | . . 1 2 Propulsion 4 | . . 1 3 Utility 3 | . . 1 2 Weapon 6 | . . 1 5 Highest Loss Streak 6 | . . 4 6 To Critical Strikes . | . . . . Average Backups 5 | 1 6 7 5 Power . | . 1 1 . Propulsion 1 | 1 2 2 1 Utility . | . 1 1 . Weapon 2 | . 1 2 2 Tool/Special . | . . . . Unused Backups 3 | . 1 1 1 Power . | . . . . Propulsion . | . . . . Utility 1 | . . . 1 Weapon 2 | . 1 1 . Tool/Special . | . . . . Average Slot Usage (%) 80 | . 97 82 74 Engine 8 | . 14 10 5 Core 1 | . . . 2 Treads 10 | . 28 19 . Leg 9 | . . 1 16 Storage 13 | . 14 11 13 Processor 10 | . 12 11 9 Hackware 2 | . . . 4 Protection 5 | . . 7 5 Energy Gun 10 | . 14 10 9 Ballistic Gun 4 | . 14 2 2 Ballistic Cannon 4 | . . 7 4 Peak Build Rating 20 | 6 8 9 20 Average Rating 11 | 4 7 8 14 On Entrance 5 | . 6 8 9 Naked Turns . | . . . . Heaviest Build 26 | 14 14 18 26 Greatest Support 40 | 40 40 40 23 Greatest Overweight (x) 1 | . . . 1 Average Overweight (x) . | . . . . Largest Inventory Capacity 8 | 8 8 8 8 Average Capacity 7 | 7 8 8 8 Most Carried 8 | 4 8 8 8 Average Carried 5 | 2 6 7 5 Final Capacity 8 | 8 8 8 8 Final Carried 8 | 4 8 7 2 Class Distribution -------------------- 89% | Mutant 10% | Scavenger-Mutant Dominant Class ---------------- Mutant | -10/Materials Mutant | -9/Materials Mutant | -8/Materials Resources | -11 -10 -9 -8 ----------- Run | Yrd Mat Mat Mat Matter Collected 1092 | 169 52 295 576 Remotely . | . . . . Salvage Created 1403 | . 52 471 880 Parts 88 | . 4 37 47 Haulers Intercepted 1 | . . . 1 Recyclers Shooed . | . . . . Parts Field Recycled . | . . . . Retrieved Matter . | . . . . Parts Self-Destructed . | . . . . Prevented . | . . . . Kills | -11 -10 -9 -8 ------- Run | Yrd Mat Mat Mat Combat Hostiles Destroyed 36 | . 1 13 22 Guns 17 | . 1 3 13 Cannons 13 | . . 7 6 AOE 5 | . . 3 2 Classes Destroyed 10 | . 2 6 2 Worker 3 | . . 2 1 Builder 3 | . . 1 2 Hauler 1 | . . . 1 Recycler 1 | . . 1 . Operator 1 | . 1 . . Swarmer 9 | . . 4 5 Grunt 17 | . 1 6 10 Duelist 1 | . . 1 . Sentry 8 | . . 2 6 Hunter 1 | . . . 1 Best Kill Streak 13 | . 1 13 4 Combat Bots Only 9 | . 1 9 4 Max Kills in Single Turn 3 | . 1 3 1 Gunslinging . | . . . . Exploded 1 | . . 1 1 Melee . | . . . . Uniques/NPCs Destroyed . | . . . . Combat | -11 -10 -9 -8 -------- Run | Yrd Mat Mat Mat Hostile Shots Fired 256 | . 14 67 175 Missed 67 | . 5 19 43 Hits 189 | . 9 48 132 Projectile 189 | . 9 48 132 Critical Strikes 6 | . . . 6 Damage Taken 2698 | . 94 650 1954 Core 451 | . 15 70 366 Absorbed by Shields . | . . . . Regen/Repaired (Parts) 51 | . . . 51 Core Remaining (%) 92 | 100 94 82 . Volleys Fired 132 | . 8 36 88 Largest 2 | . 2 2 2 Hottest 102 | . 70 95 102 Shots Fired 218 | . 16 63 139 Gun 143 | . 16 31 96 Cannon 69 | . . 28 41 Launcher 6 | . . 4 2 Special . | . . . . Kinetic 98 | . 8 28 62 Thermal 81 | . 8 31 42 Explosive 6 | . . 4 2 Electromagnetic 33 | . . . 33 Robot Hit Streak 15 | . 10 12 15 Robot Miss Streak 3 | . 2 3 3 Penetration Max . | . . . . Secondary Targets 3 | . . . 3 Max Gunslinging Chain 1 | . . . 1 Shots Hit Robots 157 | . 12 45 100 Core Hits 79 | . 4 24 51 Critical Kills . | . . . . Critical Parts Destroyed . | . . . . Critical Strikes 7 | . 2 . 5 Burn 4 | . 2 . 2 Blast 1 | . . . 1 Corrupt 2 | . . . 2 Melee Attacks 1 | . . . 1 Impact . | . . . . Slashing . | . . . . Piercing . | . . . . Sneak Attacks 1 | . . . 1 Combat Hostiles . | . . . . Follow-up Attacks . | . . . . Damage Inflicted 3460 | . 166 1051 2243 Guns 1635 | . 166 313 1156 Cannons 1137 | . . 398 739 Explosions 688 | . . 340 348 Melee . | . . . . Ramming . | . . . . Kinetic 1382 | . 80 398 904 Thermal 983 | . 86 313 584 Explosive 538 | . . 340 198 Electromagnetic 557 | . . . 557 Impact . | . . . . Slashing . | . . . . Piercing . | . . . . Highest Corruption 1 | . . . 1 Average Corruption 1 | . . . 1 Corruption Purged . | . . . . Corruption Blocked . | . . . . Overload Shots . | . . . . Overflow Damage 25 | . . 5 20 Projectiles 1 | . . . 1 Explosions 24 | . . 5 19 Melee . | . . . . Knockbacks 7 | . . 3 4 Impact . | . . . . Kinetic 7 | . . 3 4 Secondary . | . . . . Self-Inflicted Damage 105 | . . 71 34 Shots 3 | . . 2 1 Rammed . | . . . . Targets Rammed . | . . . . Kicked . | . . . . Crushed . | . . . . Highest Temperature 398 | . 27 253 398 Average Temperature 105 | . 12 83 124 Received Heat Transfer 1140 | . . 240 900 Effects 3 | . . . 3 Energy Bleed 1 | . . . 1 Interference 2 | . . . 2 Siege Activations . | . . . . Martial Activations . | . . . . Shielding Activations . | . . . . Robots Disrupted . | . . . . Combat Hostiles . | . . . . Robots Corrupted 1 | . . . 1 Combat Hostiles 1 | . . . 1 Parts Fried 2 | . . . 2 Impact Corruptions . | . . . . Robots Melted . | . . . . Combat Hostiles . | . . . . Parts Melted 3 | . 1 . 2 Heat Transferred 2679 | . 407 888 1384 Parts Sabotaged . | . . . . Parts Stolen . | . . . . Parts Stripped . | . . . . Power Chain Reactions 3 | . . . 3 Alert | -11 -10 -9 -8 ------- Run | Yrd Mat Mat Mat Maximum Alert Level 1 | . . 1 1 Low Security (%) 78 | 100 100 95 59 Level 1 21 | . . 4 40 Level 2 . | . . . . Level 3 . | . . . . Level 4 . | . . . . Level 5 . | . . . . High Security . | . . . . Max Security . | . . . . Peak Influence 301 | . 30 207 301 Initial 74 | . . . 74 Average 93 | . 2 58 151 Influence Increases 1115 | . 35 375 705 Destroy 0b10 Robot/C 720 | . 20 260 440 Destroy 0b10 Robot/NC 45 | . 5 20 20 Destroy Leader 182 | . 10 50 122 Successful Hack 9 | . . 4 5 Disable Machine 75 | . . 30 45 Destroy Structure 39 | . . 11 28 Lose Combat Pursuer 45 | . . . 45 Influence Decreases 860 | . 35 199 626 Entered New Map 102 | . . . 102 Time Decay 608 | . 35 169 404 Lost Part 150 | . . 30 120 Squads Dispatched 6 | . 1 . 5 Investigation . | . . . . Extermination . | . . . . Reinforcement 2 | . 1 . 1 Assault . | . . . . Garrison 4 | . . . 4 Intercept . | . . . . Searches Triggered . | . . . . Construction Impeded . | . . . . Haulers Reinforced . | . . . . Active Scanning Responses . | . . . . Cargo Convoy Interrupts . | . . . . Stealth | -11 -10 -9 -8 --------- Run | Yrd Mat Mat Mat Distress Signals . | . . . . Communications Jammed . | . . . . Distress Signals . | . . . . Times Spotted 60 | . 10 17 33 Peak Tracking Total 7 | . 4 7 4 Tactical Retreats 2 | . . . 2 Traps | -11 -10 -9 -8 ------- Run | Yrd Mat Mat Mat Traps Triggered 1 | . 1 . . Indirectly . | . . . . Trap Hack Attempts . | . . . . Triggered . | . . . . Disarmed . | . . . . Reprogrammed . | . . . . Reused . | . . . . Traps Extracted . | . . . . Installed . | . . . . Triggered . | . . . . Machines | -11 -10 -9 -8 ---------- Run | Yrd Mat Mat Mat Machines Disabled 5 | . . 2 3 Max in Single Turn 1 | . . 1 1 Machines Repaired . | . . . . Machines Dismantled . | . . . . Machines Sabotaged . | . . . . Overloaded Fab Kills . | . . . . Hacking | -11 -10 -9 -8 --------- Run | Yrd Mat Mat Mat Machines Accessed 6 | . 1 2 3 Terminals 5 | . 1 2 2 Fabricators . | . . . . Repair Stations 1 | . . . 1 Recycling Units . | . . . . Scanalyzers . | . . . . Garrison Access . | . . . . Total Hacks 13 | . 3 4 6 Successful 9 | . 1 3 5 Failed 4 | . 2 1 1 Catastrophic . | . . . . Database Lockouts . | . . . . Manual . | . . . . Terminals 11 | . 3 4 4 Fabricators . | . . . . Repair Stations 2 | . . . 2 Recycling Units . | . . . . Scanalyzers . | . . . . Garrison Access . | . . . . Terminal Hacks 7 | . 1 3 3 Record 4 | . 1 2 1 Prototype ID Bank 1 | . . . 1 Emergency Access Points 2 | . . 1 1 Fabricator Hacks . | . . . . Repair Station Hacks 2 | . . . 2 Scan Component 1 | . . . 1 Repair 1 | . . . 1 Recycling Unit Hacks . | . . . . Scanalyzer . | . . . . Garrison Access Hacks . | . . . . Unauthorized Hacks . | . . . . Terminals . | . . . . Fabricators . | . . . . Repair Stations . | . . . . Recycling Units . | . . . . Scanalyzers . | . . . . Garrison Access . | . . . . Data Cores Recovered . | . . . . Used . | . . . . Hacking Detections 4 | . 1 . 3 Full Trace Events . | . . . . Feedback Events . | . . . . Feedback Blocked . | . . . . Robot Schematics Acquired . | . . . . Robots Built . | . . . . Authchips . | . . . . Time . | . . . . Total Robot Build Rating . | . . . . Part Schematics Acquired . | . . . . Parts Built . | . . . . Authchips . | . . . . Time . | . . . . Total Part Build Rating . | . . . . Parts Repaired 1 | . . . 1 Time 38 | . . . 38 Parts Recycled . | . . . . Recycled Matter . | . . . . Retrieved Matter . | . . . . Retrieved Components . | . . . . Parts Scanalyzed . | . . . . Part Schematics Acquired . | . . . . Parts Damaged . | . . . . Bothacking | -11 -10 -9 -8 ------------ Run | Yrd Mat Mat Mat Used RIF Installer . | . . . . Robots Hacked . | . . . . Non-combat . | . . . . Combat . | . . . . Robot Hacks Applied . | . . . . Relay Couplers Released . | . . . . Fabnet Peak Effective % . | . . . . Robots Rewired . | . . . . Allies Hacked . | . . . . Hacks Repelled . | . . . . Allies | -11 -10 -9 -8 -------- Run | Yrd Mat Mat Mat Total Allies . | . . . . Largest Group . | . . . . Highest-Rated Group . | . . . . Highest-Rated Ally . | . . . . Total Orders . | . . . . Ally Attacks . | . . . . Total Damage . | . . . . Kills . | . . . . Allies Corrupted . | . . . . Allies Melted . | . . . . Intel | -11 -10 -9 -8 ------- Run | Yrd Mat Mat Mat Active Infowar (turns) . | . . . . Robot Analysis Total . | . . . . Derelict Logs Recovered . | . . . . Drone Launches . | . . . . Drone Recoveries . | . . . . Exploration | -11 -10 -9 -8 ------------- Run | Yrd Mat Mat Mat Turns Passed 1909 | 97 340 497 975 Spaces Moved 863 | 63 193 241 366 Core 17 | 17 . . . Treads 458 | 46 193 219 . Legs 388 | . . 22 366 Wheels . | . . . . Hover . | . . . . Flight . | . . . . Fastest Speed 50 | 50 160 120 120 Average Speed 152 | 130 160 156 149 Slowest Speed 190 | 160 160 160 190 Overloaded Moves . | . . . . Propulsion Burnouts . | . . . . Robots Hopped . | . . . . Potential Cave-ins . | . . . . Cave-ins Triggered . | . . . . Exploration Rate (%) 21 | 5 25 22 35 Regions Visited 3 Branch Regions . Pre-discovered Areas . | . . . . Known Exits Taken . | . . . . Unknown Exits Taken 3 | 1 1 1 . Scrap Searched . | . . . . Spaces Dug . | . . . . Terrain Destroyed 43 | . . 16 27 Melee . | . . . . Projectile 5 | . . . 5 AOE 38 | . . 16 22 Terrain Rammed . | . . . . Walls Destroyed . | . . . . Machines Disabled . | . . . . Actions | -11 -10 -9 -8 --------- Run | Yrd Mat Mat Mat Total 1236 | 78 209 297 652 Wait 151 | . 1 . 150 Move 860 | 62 192 240 366 Hop . | . . . . Pick Up 37 | 10 6 7 14 Fast Attach 1 | . . . 1 Attach 20 | 6 1 4 9 Detach . | . . . . Swap 20 | . . 6 14 Drop 14 | . 1 4 9 Fire 132 | . 8 36 88 Melee 1 | . . . 1 Ram . | . . . . Kick . | . . . . Crush . | . . . . Escape Stasis . | . . . . Rewire . | . . . . Trap . | . . . . Miscellaneous . | . . . . Route ------- -11/Scrapyard -10/Materials -9/Materials -8/Materials History --------- Turn | Location | Event 8 | -11/Scrapyard | Discovered new exit (range 14) 98 | -11/Scrapyard | Entered Materials 305 | -10/Materials | Build established: Mutant 408 | -10/Materials | Discovered new exit (range 16) 438 | -10/Materials | Entered another Materials area 438 | -9/Materials | Evolved 2 slots: Utility x2 879 | -9/Materials | Destroyed 9 combat bots 897 | -9/Materials | Lost 4 parts (1p1n1u1w) 918 | -9/Materials | Discovered new exit (range 11) 935 | -9/Materials | Entered another Materials area 935 | -8/Materials | Evolved 2 slots: Utility x2 1212 | -8/Materials | Repaired Assault Cannon 1445 | -8/Materials | Garrison activated, responded to threat 1738 | -8/Materials | Lost 6 parts (1p1n1u3w) 1818 | -8/Materials | Garrison activated, responded to threat 1876 | -8/Materials | Core integrity fell below 50% 1910 | -8/Materials | Self-destructed Last Messages --------------- 01899_ G-47 Trooper misfires. 01900_ Overheating: System interference. 01900_ Beam Rifle temporarily disabled. 01900_ U-05 Engineer lays Concrete. 01901_ Y-45 Defender heat spikes uncontrollably. 01901_ K-01 Serf collects debris. 01902_ U-05 Engineer lays Concrete. 01905_ K-01 Serf collects debris. 01906_ U-05 Engineer lays Concrete. 01907_ Aluminum Leg destroyed. 01907_ U-05 Engineer lays Concrete. 01909_ Y-45 Defender heat damages Beam Rifle, Heat Sink. 01909_ K-01 Serf collects debris. 01909_ Beam Rifle destroyed. 01910_ Y-45 Defender heat damages Beam Rifle, Lgt. Treads, Heat Sink. 01910_ R-06 Scavenger collects Wheel. 01910_ U-05 Engineer builds a Wall. 01910_ Aluminum Leg destroyed. Map ----- +----------------------------------------------------+ | ???????????" % # """"" # | | ???????????" ###### ##### % # # | | ?????????? ######+##### %# """"" # | | ????????? """ # ## # """"" # | | ?????????? """ # """ """ ## + """"" # | | ????????????## """ + """ """ ## [ # # | | ?????????????# # """ """ ## # # | | ?????????????# #[ ## ######### | | ????????????# """ ########### !#??????? | | ????????????## """ [ #??????? | | ?????????????# """ T #??????? | | ?????????????# #??????? | | ?????????????# !! #### #??????? | | ?????????????# """ !! #??#######??????? | | ?????????????# "" !! r#???????????????? | | ?????????????# """ [ u#???????????????? | | ?????????????# %!%##??????????????? | | ???????????### ^ *k"#??????????????? | | ???????????? """ "#??????????????? | | ?????????????# """ w "#??????????????? | | ?????????????# "" T#??????????????? | | ?????????????# ^ "#??????????????? | | ?????????????# o g "#??????????????? | | ?????????????# !!! "#??????????????? | | ?????????????+ !!] ##??????????????? | | ?????????????# @!Yu #???????????????? | | ???????????????#####+#######;u #???????????????? | | ????????????????????????????# #???????????????? | | ????????????????????????????# #???????????????? | | ????????????????????????????# #???????????????? | | ????????????????????????????# #???????????????? | | ????????????????????????????# #???????????????? | | ????????????????????????????# #???????????????? | | ????????????????????????????# #???????????????? | | ????????????????????????????# #???????????????? | | ????????????????????????????# #???????????????? | | ????????????????????????????? ????????????????? | | ????????????????????????????? ????????????????? | | ????????????????????????????? ????????????????? | | ???????????????????????????????????????????????? | | ???????????????????????????????????????????????? | | ???????????????????????????????????????????????? | | ???????????????????????????????????????????????? | | ???????????????????????????????????????????????? | | ???????????????????????????????????????????????? | | ???????????????????????????????????????????????? | | ???????????????????????????????????????????????? | | ???????????????????????????????????????????????? | | | | | +----------------------------------------------------+ Best States ------------- Heat Dissipation 31 Energy Generation 14 Energy Capacity 275 Matter Stores 400 Matter Capacity 400 Sight Range 16 Terrain Scan Density 10 Armor Coverage 150 Evasion (%) 55 Targeting Accuracy 6 Recoil Reduction 2 Offensive Hacking 10 Item Schematics ----------------- None Robot Schematics ------------------ None Fabricated ------------ Nothing Repaired ---------- Assault Cannon | 66% | -8/Materials Alien Tech Used ----------------- None Achievements -------------- None Challenges ------------ None Game ------ Seed DisposableBattleGenerator Manual? 0 Play Time 00:14:27 Cumulative 36.5 hours Start 2025.07.17 @ 12:22:59 End 2025.07.17 @ 12:36:57 Sessions 1 Manual Loads 0 Difficulty Rogue Special Mode None Game No. 192 Rogue 192 Adventurer 0 Explorer 0 Win Type - Total 0 Types 0/0/0/0/0/0/0/0/0/0 Lore% 11 Gallery% 25 Achievement% 20 Wizard Run 0 Options --------- Layout 1 ASCII 0 Keyboard 0 Movement Mouse Keybinds 0 Fullscreen 2 Font 32/Cog Map View 50x35 Zoom Use 0% Tactical HUD 1 Map Filters NONE Filters NONE Steam 1 RUN: e768a6e5-da17-4f7a-98a5-d147158e3510